[Event "Titled Tuesday Blitz February 21 Late 2023"]
[White "Guzman, Christopher"]
[Black "Backsten, Jan"]
[WhiteFideId "6405096"]
[BlackFideId "1735381"]
[WhiteElo "2271"]
[BlackElo "2029"]
[Result "1-0"]
[Round "05"]
[TimeControl "180+2"]
[Date "2023.02.21"]
[WhiteClock "0:01:55"]
[BlackClock "0:00:37"]

1. e4 {[%clk 0:03:00]}  e6 {[%clk 0:02:57]} 2. d3 {[%clk 0:02:45]}  d5 {[%clk 0:02:56]} 3. Nd2 {[%clk 0:02:46]}  c5 {[%clk 0:02:56]} 4. Ngf3 {[%clk 0:02:43]}  Nc6 {[%clk 0:02:55]} 5. g3 {[%clk 0:02:41]}  Nf6 {[%clk 0:02:48]} 6. Bg2 {[%clk 0:02:39]}  Be7 {[%clk 0:02:44]} 7. O-O {[%clk 0:02:34]}  O-O {[%clk 0:02:44]} 8. Re1 {[%clk 0:02:25]}  b5 {[%clk 0:02:25]} 9. a4 {[%clk 0:02:23]}  b4 {[%clk 0:02:25]} 10. h3 {[%clk 0:02:19]}  a5 {[%clk 0:02:18]} 11. Kh2 {[%clk 0:02:16]}  Ba6 {[%clk 0:02:15]} 12. b3 {[%clk 0:02:13]}  Re8 {[%clk 0:02:04]} 13. e5 {[%clk 0:02:11]}  Nd7 {[%clk 0:02:02]} 14. Bb2 {[%clk 0:02:10]}  c4 {[%clk 0:01:51]} 15. dxc4 {[%clk 0:02:07]}  dxc4 {[%clk 0:01:50]} 16. Nxc4 {[%clk 0:02:07]}  Bxc4 {[%clk 0:01:42]} 17. bxc4 {[%clk 0:02:08]}  Rc8 {[%clk 0:01:34]} 18. Nd2 {[%clk 0:02:04]}  Nc5 {[%clk 0:00:37]} 19. Nb3 {[%clk 0:01:55]} 1-0


[Site "https://www.chess.com"]

[Event "Titled Tuesday Blitz February 21 Late 2023"]
[White "Fieberg, Samuel"]
[Black "Goncalves, Davi Sulzbacher"]
[WhiteFideId "12901717"]
[BlackFideId "2154510"]
[WhiteElo "2157"]
[BlackElo "2282"]
[Result "1-0"]
[Round "05"]
[TimeControl "180+2"]
[Date "2023.02.21"]
[WhiteClock "0:00:11"]
[BlackClock "0:00:03"]

1. c4 {[%clk 0:03:00]}  Nf6 {[%clk 0:02:34]} 2. g3 {[%clk 0:03:01]}  e6 {[%clk 0:02:35]} 3. Bg2 {[%clk 0:03:01]}  Be7 {[%clk 0:02:35]} 4. Nf3 {[%clk 0:03:01]}  O-O {[%clk 0:02:35]} 5. O-O {[%clk 0:03:02]}  d5 {[%clk 0:02:35]} 6. b3 {[%clk 0:03:02]}  b6 {[%clk 0:02:35]} 7. Bb2 {[%clk 0:03:02]}  Bb7 {[%clk 0:02:35]} 8. d4 {[%clk 0:02:58]}  dxc4 {[%clk 0:02:31]} 9. bxc4 {[%clk 0:02:57]}  c5 {[%clk 0:02:32]} 10. e3 {[%clk 0:02:57]}  cxd4 {[%clk 0:02:30]} 11. exd4 {[%clk 0:02:58]}  Nc6 {[%clk 0:02:29]} 12. Nbd2 {[%clk 0:02:52]}  Rc8 {[%clk 0:02:23]} 13. Rc1 {[%clk 0:02:51]}  Na5 {[%clk 0:02:17]} 14. Qe2 {[%clk 0:02:45]}  Qe8 {[%clk 0:02:07]} 15. d5 {[%clk 0:02:21]}  exd5 {[%clk 0:02:00]} 16. Rfe1 {[%clk 0:02:19]}  Bb4 {[%clk 0:01:55]} 17. Qd3 {[%clk 0:01:56]}  dxc4 {[%clk 0:01:48]} 18. Qb1 {[%clk 0:01:35]}  Qc6 {[%clk 0:01:15]} 19. Nh4 {[%clk 0:00:45]}  Nd5 {[%clk 0:00:49]} 20. Ne4 {[%clk 0:00:28]}  c3 {[%clk 0:00:37]} 21. Ng5 {[%clk 0:00:28]}  c2 {[%clk 0:00:32]} 22. Qa1 {[%clk 0:00:27]}  Bxe1 {[%clk 0:00:25]} 23. Be4 {[%clk 0:00:23]}  f5 {[%clk 0:00:20]} 24. Nxf5 {[%clk 0:00:21]}  Rxf5 {[%clk 0:00:20]} 25. Bxf5 {[%clk 0:00:20]}  Nc3 {[%clk 0:00:17]} 26. f3 {[%clk 0:00:14]}  Qc5+ {[%clk 0:00:13]} 27. Kg2 {[%clk 0:00:13]}  Qf2+ {[%clk 0:00:13]} 28. Kh3 {[%clk 0:00:14]}  g6 {[%clk 0:00:09]} 29. Rxc2 {[%clk 0:00:13]}  Qxc2 {[%clk 0:00:09]} 30. Bxc2 {[%clk 0:00:13]}  Bd2 {[%clk 0:00:08]} 31. Bxc3 {[%clk 0:00:13]}  Bxc3 {[%clk 0:00:08]} 32. Qd1 {[%clk 0:00:13]}  Bf6 {[%clk 0:00:08]} 33. Bb3+ {[%clk 0:00:13]}  Kg7 {[%clk 0:00:07]} 34. Ne6+ {[%clk 0:00:13]}  Kh8 {[%clk 0:00:06]} 35. Qd7 {[%clk 0:00:13]}  Rg8 {[%clk 0:00:04]} 36. Qf7 {[%clk 0:00:13]}  Bc8 {[%clk 0:00:04]} 37. g4 {[%clk 0:00:12]}  Bb2 {[%clk 0:00:03]} 38. Ng5 {[%clk 0:00:11]} 1-0


[Site "https://www.chess.com"]

[Event "Titled Tuesday Blitz February 21 Late 2023"]
[White "Lerch, Philipp"]
[Black "Klenburg, Michael"]
[WhiteFideId "4654129"]
[BlackFideId "14102072"]
[WhiteElo "2305"]
[BlackElo "2325"]
[Result "0-1"]
[Round "05"]
[TimeControl "180+2"]
[Date "2023.02.21"]
[WhiteClock "0:00:25"]
[BlackClock "0:01:48"]

1. Nf3 {[%clk 0:03:00]}  Nf6 {[%clk 0:02:58]} 2. g3 {[%clk 0:03:00]}  g6 {[%clk 0:02:58]} 3. Bg2 {[%clk 0:03:00]}  Bg7 {[%clk 0:02:58]} 4. O-O {[%clk 0:03:01]}  O-O {[%clk 0:02:58]} 5. d4 {[%clk 0:03:01]}  d6 {[%clk 0:02:57]} 6. c4 {[%clk 0:03:02]}  Nbd7 {[%clk 0:02:57]} 7. Nc3 {[%clk 0:03:01]}  e5 {[%clk 0:02:57]} 8. e4 {[%clk 0:03:00]}  exd4 {[%clk 0:02:57]} 9. Nxd4 {[%clk 0:02:58]}  Re8 {[%clk 0:02:57]} 10. h3 {[%clk 0:02:55]}  a6 {[%clk 0:02:57]} 11. Re1 {[%clk 0:02:46]}  Rb8 {[%clk 0:02:56]} 12. Bg5 {[%clk 0:02:16]}  h6 {[%clk 0:02:53]} 13. Be3 {[%clk 0:02:15]}  Ne5 {[%clk 0:02:47]} 14. b3 {[%clk 0:02:11]}  c5 {[%clk 0:02:47]} 15. Nc2 {[%clk 0:01:48]}  b5 {[%clk 0:02:44]} 16. f4 {[%clk 0:01:42]}  Ned7 {[%clk 0:02:43]} 17. Qd3 {[%clk 0:01:36]}  b4 {[%clk 0:02:34]} 18. Ne2 {[%clk 0:01:26]}  Bb7 {[%clk 0:02:31]} 19. Qxd6 {[%clk 0:01:12]}  Nxe4 {[%clk 0:02:29]} 20. Bxe4 {[%clk 0:01:07]}  Bxe4 {[%clk 0:02:28]} 21. Rac1 {[%clk 0:01:04]}  Qc8 {[%clk 0:02:22]} 22. Red1 {[%clk 0:00:57]}  Nf6 {[%clk 0:02:10]} 23. Kh2 {[%clk 0:00:32]}  Bxc2 {[%clk 0:02:08]} 24. Rxc2 {[%clk 0:00:31]}  Rxe3 {[%clk 0:02:07]} 25. Ng1 {[%clk 0:00:32]}  Rxg3 {[%clk 0:01:54]} 26. Qxb8 {[%clk 0:00:25]}  Qxb8 {[%clk 0:01:52]} 27. Kxg3 {[%clk 0:00:26]}  Nh5+ {[%clk 0:01:52]} 28. Kg2 {[%clk 0:00:25]}  Qxf4 {[%clk 0:01:49]} 29. Nf3 {[%clk 0:00:25]}  Qg3+ {[%clk 0:01:48]} 0-1


[Site "https://www.chess.com"]

[Event "Titled Tuesday Blitz February 21 Late 2023"]
[White "Krallis, Christos"]
[Black "Bhavikatti, Neil"]
[WhiteFideId "4298896"]
[BlackFideId "30935024"]
[WhiteElo "2344"]
[BlackElo "2051"]
[Result "1-0"]
[Round "05"]
[TimeControl "180+2"]
[Date "2023.02.21"]
[WhiteClock "0:00:05"]
[BlackClock "0:00:05"]

1. d4 {[%clk 0:02:57]}  d5 {[%clk 0:02:59]} 2. Nf3 {[%clk 0:02:56]}  Nf6 {[%clk 0:02:58]} 3. Bf4 {[%clk 0:02:56]}  e6 {[%clk 0:02:57]} 4. e3 {[%clk 0:02:56]}  Bd6 {[%clk 0:02:56]} 5. Nbd2 {[%clk 0:02:56]}  Bxf4 {[%clk 0:02:55]} 6. exf4 {[%clk 0:02:55]}  Qd6 {[%clk 0:02:54]} 7. g3 {[%clk 0:02:55]}  O-O {[%clk 0:02:52]} 8. Be2 {[%clk 0:02:54]}  c5 {[%clk 0:02:53]} 9. dxc5 {[%clk 0:02:54]}  Qxc5 {[%clk 0:02:52]} 10. O-O {[%clk 0:02:55]}  b6 {[%clk 0:02:51]} 11. c3 {[%clk 0:02:54]}  Ba6 {[%clk 0:02:50]} 12. Ne5 {[%clk 0:02:53]}  Bxe2 {[%clk 0:02:47]} 13. Qxe2 {[%clk 0:02:53]}  Nbd7 {[%clk 0:02:46]} 14. Nb3 {[%clk 0:02:52]}  Qc7 {[%clk 0:02:45]} 15. Nd4 {[%clk 0:02:50]}  Ne4 {[%clk 0:02:32]} 16. f3 {[%clk 0:02:47]}  Nd6 {[%clk 0:02:27]} 17. h4 {[%clk 0:02:41]}  Nc4 {[%clk 0:02:22]} 18. Nxc4 {[%clk 0:02:38]}  dxc4 {[%clk 0:02:16]} 19. Rad1 {[%clk 0:02:26]}  Rac8 {[%clk 0:02:13]} 20. Nxe6 {[%clk 0:02:25]}  fxe6 {[%clk 0:02:07]} 21. Qxe6+ {[%clk 0:02:25]}  Rf7 {[%clk 0:02:07]} 22. Rd4 {[%clk 0:02:14]}  Nf8 {[%clk 0:02:06]} 23. Qd5 {[%clk 0:02:05]}  Qc6 {[%clk 0:02:03]} 24. Qxc6 {[%clk 0:01:55]}  Rxc6 {[%clk 0:02:03]} 25. Re1 {[%clk 0:01:55]}  Rd7 {[%clk 0:01:51]} 26. Rde4 {[%clk 0:01:41]}  Kf7 {[%clk 0:01:47]} 27. f5 {[%clk 0:01:38]}  b5 {[%clk 0:01:39]} 28. g4 {[%clk 0:01:21]}  g6 {[%clk 0:01:31]} 29. fxg6+ {[%clk 0:01:20]}  Nxg6 {[%clk 0:01:27]} 30. h5 {[%clk 0:01:21]}  Ne7 {[%clk 0:01:18]} 31. Re5 {[%clk 0:00:59]}  Rf6 {[%clk 0:01:01]} 32. Kg2 {[%clk 0:00:49]}  Nd5 {[%clk 0:00:52]} 33. Kg3 {[%clk 0:00:35]}  h6 {[%clk 0:00:27]} 34. Rd1 {[%clk 0:00:31]}  Rfd6 {[%clk 0:00:27]} 35. Rf5+ {[%clk 0:00:30]}  Kg7 {[%clk 0:00:25]} 36. Rd4 {[%clk 0:00:30]}  a6 {[%clk 0:00:22]} 37. Re5 {[%clk 0:00:29]}  Nb6 {[%clk 0:00:18]} 38. Rde4 {[%clk 0:00:27]}  Na4 {[%clk 0:00:16]} 39. Re7+ {[%clk 0:00:25]}  Rxe7 {[%clk 0:00:16]} 40. Rxe7+ {[%clk 0:00:26]}  Kf6 {[%clk 0:00:16]} 41. Rh7 {[%clk 0:00:27]}  Ke5 {[%clk 0:00:10]} 42. f4+ {[%clk 0:00:27]}  Ke4 {[%clk 0:00:10]} 43. Re7+ {[%clk 0:00:26]}  Kd3 {[%clk 0:00:09]} 44. g5 {[%clk 0:00:26]}  Nxb2 {[%clk 0:00:06]} 45. g6 {[%clk 0:00:26]}  Kxc3 {[%clk 0:00:05]} 46. g7 {[%clk 0:00:25]}  Rd8 {[%clk 0:00:05]} 47. f5 {[%clk 0:00:25]}  Kb4 {[%clk 0:00:04]} 48. f6 {[%clk 0:00:26]}  c3 {[%clk 0:00:04]} 49. Re2 {[%clk 0:00:18]}  Rd2 {[%clk 0:00:01]} 50. Re4+ {[%clk 0:00:18]}  Nc4 {[%clk 0:00:01]} 51. g8=Q {[%clk 0:00:12]}  c2 {[%clk 0:00:01]} 52. Qf8+ {[%clk 0:00:01]}  Ka4 {[%clk 0:00:01]} 53. Re1 {[%clk 0:00:01]}  Rd3+ {[%clk 0:00:02]} 54. Kf4 {[%clk 0:00:01]}  c1=Q+ {[%clk 0:00:03]} 55. Kf5 {[%clk 0:00:02]}  Qxe1 {[%clk 0:00:03]} 56. Qe8 {[%clk 0:00:03]}  Qd2 {[%clk 0:00:04]} 57. Kg6 {[%clk 0:00:04]}  Kb4 {[%clk 0:00:04]} 58. f7 {[%clk 0:00:05]}  Kc3 {[%clk 0:00:05]} 59. Qf8 {[%clk 0:00:06]}  Kc2 {[%clk 0:00:06]} 60. Qh8 {[%clk 0:00:06]}  Rf3 {[%clk 0:00:07]} 61. Qxh6 {[%clk 0:00:07]}  Rg3+ {[%clk 0:00:08]} 62. Kh7 {[%clk 0:00:07]}  Qd3+ {[%clk 0:00:09]} 63. Qg6 {[%clk 0:00:07]}  Qxg6+ {[%clk 0:00:08]} 64. hxg6 {[%clk 0:00:08]}  Ne5 {[%clk 0:00:08]} 65. f8=Q {[%clk 0:00:08]}  Rh3+ {[%clk 0:00:08]} 66. Kg7 {[%clk 0:00:08]}  Rg3 {[%clk 0:00:09]} 67. Qf2+ {[%clk 0:00:08]}  Kb1 {[%clk 0:00:08]} 68. Qxg3 {[%clk 0:00:08]}  Nxg6 {[%clk 0:00:09]} 69. Kxg6 {[%clk 0:00:08]}  Kxa2 {[%clk 0:00:10]} 70. Kf5 {[%clk 0:00:09]}  b4 {[%clk 0:00:10]} 71. Ke4 {[%clk 0:00:09]}  b3 {[%clk 0:00:11]} 72. Qg8 {[%clk 0:00:06]}  Ka3 {[%clk 0:00:10]} 73. Qf8+ {[%clk 0:00:04]}  Ka2 {[%clk 0:00:10]} 74. Qf7 {[%clk 0:00:05]}  Ka3 {[%clk 0:00:08]} 75. Qe7+ {[%clk 0:00:05]}  Ka2 {[%clk 0:00:09]} 76. Qe6 {[%clk 0:00:05]}  a5 {[%clk 0:00:08]} 77. Kd3 {[%clk 0:00:05]}  a4 {[%clk 0:00:08]} 78. Kc3 {[%clk 0:00:05]}  Ka3 {[%clk 0:00:07]} 79. Qe2 {[%clk 0:00:05]}  b2 {[%clk 0:00:05]} 80. Qxb2# {[%clk 0:00:05]} 1-0


[Site "https://www.chess.com"]

[Event "Titled Tuesday Blitz February 21 Late 2023"]
[White "Filgueira, Hernan"]
[Black "De Souza, Cristiano Gomes"]
[WhiteFideId "101770"]
[BlackFideId "2151758"]
[WhiteElo "2283"]
[BlackElo "2018"]
[Result "1/2-1/2"]
[Round "05"]
[TimeControl "180+2"]
[Date "2023.02.21"]
[WhiteClock "0:00:59"]
[BlackClock "0:01:15"]

1. c4 {[%clk 0:02:59]}  Nf6 {[%clk 0:02:58]} 2. g3 {[%clk 0:02:59]}  g6 {[%clk 0:02:57]} 3. Bg2 {[%clk 0:03:00]}  Bg7 {[%clk 0:02:58]} 4. Nc3 {[%clk 0:03:00]}  O-O {[%clk 0:02:58]} 5. d3 {[%clk 0:03:00]}  d6 {[%clk 0:02:59]} 6. e4 {[%clk 0:03:00]}  c5 {[%clk 0:02:57]} 7. Nge2 {[%clk 0:02:59]}  Nc6 {[%clk 0:02:57]} 8. O-O {[%clk 0:02:59]}  Ne8 {[%clk 0:02:57]} 9. Be3 {[%clk 0:02:57]}  Nc7 {[%clk 0:02:58]} 10. d4 {[%clk 0:02:58]}  cxd4 {[%clk 0:02:58]} 11. Nxd4 {[%clk 0:02:59]}  Ne6 {[%clk 0:02:55]} 12. Nde2 {[%clk 0:02:58]}  b6 {[%clk 0:02:53]} 13. e5 {[%clk 0:02:46]}  Bb7 {[%clk 0:02:53]} 14. exd6 {[%clk 0:02:46]}  exd6 {[%clk 0:02:51]} 15. Qd2 {[%clk 0:02:43]}  Rc8 {[%clk 0:02:48]} 16. Rac1 {[%clk 0:02:42]}  Na5 {[%clk 0:02:45]} 17. b3 {[%clk 0:02:39]}  Bxg2 {[%clk 0:02:44]} 18. Kxg2 {[%clk 0:02:39]}  Qe7 {[%clk 0:02:42]} 19. Nd5 {[%clk 0:02:33]}  Qd7 {[%clk 0:02:40]} 20. Kg1 {[%clk 0:02:33]}  Rfe8 {[%clk 0:02:35]} 21. Rfd1 {[%clk 0:02:27]}  Nc6 {[%clk 0:02:33]} 22. f4 {[%clk 0:02:15]}  Nc5 {[%clk 0:02:29]} 23. Bf2 {[%clk 0:02:11]}  Ne4 {[%clk 0:02:26]} 24. Qc2 {[%clk 0:02:10]}  Nxf2 {[%clk 0:02:23]} 25. Kxf2 {[%clk 0:02:10]}  Re6 {[%clk 0:02:15]} 26. Rd2 {[%clk 0:02:03]}  Rce8 {[%clk 0:02:14]} 27. Kg2 {[%clk 0:02:00]}  Ne7 {[%clk 0:02:08]} 28. Nxe7+ {[%clk 0:01:53]}  Qxe7 {[%clk 0:02:09]} 29. Ng1 {[%clk 0:01:50]}  h5 {[%clk 0:02:02]} 30. h4 {[%clk 0:01:40]}  Re1 {[%clk 0:01:59]} 31. Rxe1 {[%clk 0:01:39]}  Qxe1 {[%clk 0:01:59]} 32. Nf3 {[%clk 0:01:37]}  Qe6 {[%clk 0:01:44]} 33. Qd3 {[%clk 0:01:33]}  Bf8 {[%clk 0:01:43]} 34. Qd5 {[%clk 0:01:26]}  Qg4 {[%clk 0:01:30]} 35. Qd3 {[%clk 0:01:18]}  Qe6 {[%clk 0:01:21]} 36. Ng5 {[%clk 0:01:09]}  Qe1 {[%clk 0:01:18]} 37. Nf3 {[%clk 0:00:59]}  Qe6 {[%clk 0:01:15]} 1/2-1/2


[Site "https://www.chess.com"]

[Event "Titled Tuesday Blitz February 21 Late 2023"]
[White "Mendez Machado, Andre"]
[Black "Berezin, Viktor"]
[WhiteFideId "6603793"]
[BlackFideId "14107872"]
[WhiteElo "1974"]
[BlackElo "2307"]
[Result "1-0"]
[Round "05"]
[TimeControl "180+2"]
[Date "2023.02.21"]
[WhiteClock "0:00:17"]
[BlackClock "0:00:06"]

1. e4 {[%clk 0:03:00]}  g6 {[%clk 0:02:57]} 2. d4 {[%clk 0:03:00]}  Bg7 {[%clk 0:02:54]} 3. Nc3 {[%clk 0:03:00]}  d6 {[%clk 0:02:54]} 4. Nf3 {[%clk 0:02:59]}  Nf6 {[%clk 0:02:54]} 5. h3 {[%clk 0:02:59]}  O-O {[%clk 0:02:55]} 6. Be3 {[%clk 0:02:58]}  c6 {[%clk 0:02:55]} 7. a4 {[%clk 0:02:57]}  a5 {[%clk 0:02:54]} 8. Be2 {[%clk 0:02:39]}  Qc7 {[%clk 0:02:53]} 9. O-O {[%clk 0:02:38]}  e5 {[%clk 0:02:53]} 10. Bc4 {[%clk 0:02:32]}  Nbd7 {[%clk 0:02:30]} 11. Qc1 {[%clk 0:02:25]}  exd4 {[%clk 0:02:27]} 12. Bxd4 {[%clk 0:02:22]}  Ne5 {[%clk 0:02:23]} 13. Nxe5 {[%clk 0:02:18]}  dxe5 {[%clk 0:02:23]} 14. Bc5 {[%clk 0:02:06]}  Rd8 {[%clk 0:02:20]} 15. Qe3 {[%clk 0:02:00]}  Rd4 {[%clk 0:02:06]} 16. Bxd4 {[%clk 0:01:06]}  exd4 {[%clk 0:02:07]} 17. Qxd4 {[%clk 0:01:06]}  Ng4 {[%clk 0:01:46]} 18. e5 {[%clk 0:00:59]}  Bxe5 {[%clk 0:01:38]} 19. Qd3 {[%clk 0:00:49]}  Bf5 {[%clk 0:01:32]} 20. Qe2 {[%clk 0:00:43]}  Re8 {[%clk 0:01:06]} 21. Kh1 {[%clk 0:00:43]}  Nf6 {[%clk 0:01:01]} 22. Qf3 {[%clk 0:00:31]}  Kg7 {[%clk 0:00:56]} 23. Rfe1 {[%clk 0:00:29]}  Bxc3 {[%clk 0:00:44]} 24. Qxc3 {[%clk 0:00:26]}  Rxe1+ {[%clk 0:00:41]} 25. Rxe1 {[%clk 0:00:27]}  Qd6 {[%clk 0:00:36]} 26. g4 {[%clk 0:00:23]}  Be6 {[%clk 0:00:12]} 27. g5 {[%clk 0:00:21]}  Bxc4 {[%clk 0:00:11]} 28. gxf6+ {[%clk 0:00:20]}  Qxf6 {[%clk 0:00:08]} 29. Qxc4 {[%clk 0:00:20]}  Qf3+ {[%clk 0:00:05]} 30. Kg1 {[%clk 0:00:19]}  Qxh3 {[%clk 0:00:05]} 31. Qc3+ {[%clk 0:00:19]}  Qxc3 {[%clk 0:00:05]} 32. bxc3 {[%clk 0:00:19]}  Kf6 {[%clk 0:00:05]} 33. Rb1 {[%clk 0:00:19]}  Ke5 {[%clk 0:00:04]} 34. Rxb7 {[%clk 0:00:19]}  Kd5 {[%clk 0:00:04]} 35. Rxf7 {[%clk 0:00:19]}  Kc4 {[%clk 0:00:05]} 36. Rxh7 {[%clk 0:00:18]}  Kxc3 {[%clk 0:00:05]} 37. Rh6 {[%clk 0:00:19]}  Kb4 {[%clk 0:00:05]} 38. Rxg6 {[%clk 0:00:20]}  c5 {[%clk 0:00:06]} 39. Rc6 {[%clk 0:00:18]}  Kxa4 {[%clk 0:00:05]} 40. Rxc5 {[%clk 0:00:18]}  Kb4 {[%clk 0:00:06]} 41. Rc8 {[%clk 0:00:17]} 1-0


[Site "https://www.chess.com"]

[Event "Titled Tuesday Blitz February 21 Late 2023"]
[White "Leonte, Sebastian-Marian"]
[Black "Sadovsky, Artem"]
[WhiteFideId "1268767"]
[BlackFideId "4155840"]
[WhiteElo "1279"]
[BlackElo "2276"]
[Result "0-1"]
[Round "05"]
[TimeControl "180+2"]
[Date "2023.02.21"]
[WhiteClock "0:00:10"]
[BlackClock "0:01:12"]

1. e4 {[%clk 0:02:57]}  g6 {[%clk 0:02:54]} 2. d4 {[%clk 0:02:56]}  Bg7 {[%clk 0:02:55]} 3. Nc3 {[%clk 0:02:57]}  c6 {[%clk 0:02:55]} 4. a4 {[%clk 0:02:54]}  d5 {[%clk 0:02:56]} 5. e5 {[%clk 0:02:45]}  h5 {[%clk 0:02:56]} 6. Bg5 {[%clk 0:02:37]}  Nh6 {[%clk 0:02:57]} 7. Qd2 {[%clk 0:02:36]}  a5 {[%clk 0:02:56]} 8. Bd3 {[%clk 0:02:27]}  Na6 {[%clk 0:02:56]} 9. Nf3 {[%clk 0:02:17]}  Nb4 {[%clk 0:02:55]} 10. O-O {[%clk 0:02:16]}  Bf5 {[%clk 0:02:48]} 11. Bxf5 {[%clk 0:02:06]}  Nxf5 {[%clk 0:02:49]} 12. Ne2 {[%clk 0:02:02]}  f6 {[%clk 0:02:34]} 13. exf6 {[%clk 0:01:57]}  exf6 {[%clk 0:02:35]} 14. Bf4 {[%clk 0:01:36]}  g5 {[%clk 0:02:35]} 15. c3 {[%clk 0:00:50]}  Na6 {[%clk 0:02:35]} 16. Be3 {[%clk 0:00:49]}  O-O {[%clk 0:02:35]} 17. Ng3 {[%clk 0:00:46]}  Nxe3 {[%clk 0:02:17]} 18. fxe3 {[%clk 0:00:42]}  Qe8 {[%clk 0:02:17]} 19. Nf5 {[%clk 0:00:40]}  Qe4 {[%clk 0:02:09]} 20. Ng3 {[%clk 0:00:32]}  Qg6 {[%clk 0:02:09]} 21. Rae1 {[%clk 0:00:28]}  h4 {[%clk 0:02:09]} 22. Ne2 {[%clk 0:00:25]}  Rae8 {[%clk 0:02:09]} 23. Nc1 {[%clk 0:00:22]}  Re4 {[%clk 0:02:06]} 24. h3 {[%clk 0:00:22]}  Rfe8 {[%clk 0:02:06]} 25. Nd3 {[%clk 0:00:21]}  R8e7 {[%clk 0:02:04]} 26. Nf2 {[%clk 0:00:21]}  R4e6 {[%clk 0:01:50]} 27. Ng4 {[%clk 0:00:20]}  Nc7 {[%clk 0:01:44]} 28. Re2 {[%clk 0:00:17]}  Ne8 {[%clk 0:01:44]} 29. Ref2 {[%clk 0:00:17]}  Nd6 {[%clk 0:01:45]} 30. Qd1 {[%clk 0:00:14]}  Ne4 {[%clk 0:01:45]} 31. Rc2 {[%clk 0:00:13]}  Ng3 {[%clk 0:01:46]} 32. Re1 {[%clk 0:00:14]}  Qf5 {[%clk 0:01:44]} 33. Nd2 {[%clk 0:00:13]}  Qd3 {[%clk 0:01:43]} 34. Nf1 {[%clk 0:00:12]}  Qxd1 {[%clk 0:01:37]} 35. Rxd1 {[%clk 0:00:13]}  f5 {[%clk 0:01:38]} 36. Nxg3 {[%clk 0:00:12]}  hxg3 {[%clk 0:01:37]} 37. Ne5 {[%clk 0:00:13]}  Bxe5 {[%clk 0:01:38]} 38. dxe5 {[%clk 0:00:14]}  Rxe5 {[%clk 0:01:39]} 39. Rf1 {[%clk 0:00:13]}  Kg7 {[%clk 0:01:32]} 40. c4 {[%clk 0:00:14]}  Rxe3 {[%clk 0:01:24]} 41. cxd5 {[%clk 0:00:14]}  cxd5 {[%clk 0:01:25]} 42. Rc5 {[%clk 0:00:13]}  Re1 {[%clk 0:01:26]} 43. Rxd5 {[%clk 0:00:12]}  Rxf1+ {[%clk 0:01:18]} 44. Kxf1 {[%clk 0:00:13]}  Kf6 {[%clk 0:01:18]} 45. Rxa5 {[%clk 0:00:13]}  f4 {[%clk 0:01:18]} 46. Rb5 {[%clk 0:00:13]}  Rc7 {[%clk 0:01:15]} 47. Ke2 {[%clk 0:00:10]}  Rc2+ {[%clk 0:01:14]} 48. Kf3 {[%clk 0:00:10]}  Rf2+ {[%clk 0:01:14]} 49. Kg4 {[%clk 0:00:11]}  Rxg2 {[%clk 0:01:12]} 50. Rxg5 {[%clk 0:00:11]}  Rf2 {[%clk 0:01:11]} 51. Rf5+ {[%clk 0:00:11]}  Ke6 {[%clk 0:01:12]} 52. Rf8 {[%clk 0:00:10]}  g2 {[%clk 0:01:12]} 0-1


[Site "https://www.chess.com"]

[Event "Titled Tuesday Blitz February 21 Late 2023"]
[White "Gurevich, Ilya"]
[Black "Taboas Rodriguez, Daniel"]
[WhiteFideId "2000628"]
[BlackFideId "2208466"]
[WhiteElo "2586"]
[BlackElo "2371"]
[Result "1-0"]
[Round "05"]
[TimeControl "180+2"]
[Date "2023.02.21"]
[WhiteClock "0:00:05"]
[BlackClock "0:00:05"]

1. d4 {[%clk 0:03:00]}  Nf6 {[%clk 0:02:59]} 2. c4 {[%clk 0:03:00]}  g6 {[%clk 0:02:59]} 3. Nc3 {[%clk 0:03:00]}  Bg7 {[%clk 0:02:59]} 4. e4 {[%clk 0:03:01]}  d6 {[%clk 0:02:59]} 5. f4 {[%clk 0:03:01]}  O-O {[%clk 0:02:58]} 6. Nf3 {[%clk 0:03:01]}  Na6 {[%clk 0:02:59]} 7. Bd3 {[%clk 0:03:01]}  e5 {[%clk 0:02:58]} 8. fxe5 {[%clk 0:03:02]}  dxe5 {[%clk 0:02:59]} 9. d5 {[%clk 0:03:03]}  Nc5 {[%clk 0:02:56]} 10. Bc2 {[%clk 0:03:03]}  a5 {[%clk 0:02:56]} 11. O-O {[%clk 0:03:03]}  Qe7 {[%clk 0:02:46]} 12. Bg5 {[%clk 0:02:56]}  h6 {[%clk 0:02:45]} 13. Bh4 {[%clk 0:02:56]}  g5 {[%clk 0:02:43]} 14. Bf2 {[%clk 0:02:54]}  Ng4 {[%clk 0:02:39]} 15. a3 {[%clk 0:02:33]}  Nxf2 {[%clk 0:02:34]} 16. Rxf2 {[%clk 0:02:34]}  f5 {[%clk 0:02:31]} 17. exf5 {[%clk 0:02:23]}  e4 {[%clk 0:02:31]} 18. Nd4 {[%clk 0:02:17]}  e3 {[%clk 0:02:30]} 19. Rf1 {[%clk 0:02:15]}  Qe5 {[%clk 0:01:49]} 20. Nce2 {[%clk 0:02:08]}  Ne4 {[%clk 0:01:32]} 21. Bxe4 {[%clk 0:01:44]}  Qxe4 {[%clk 0:01:31]} 22. Ne6 {[%clk 0:01:44]}  Rxf5 {[%clk 0:01:24]} 23. Rxf5 {[%clk 0:01:44]}  Qxf5 {[%clk 0:01:25]} 24. Nxg7 {[%clk 0:01:45]}  Kxg7 {[%clk 0:01:25]} 25. Qd4+ {[%clk 0:01:42]}  Qf6 {[%clk 0:01:25]} 26. Qxe3 {[%clk 0:01:42]}  Bd7 {[%clk 0:00:54]} 27. Rf1 {[%clk 0:01:41]}  Qd6 {[%clk 0:00:54]} 28. Nd4 {[%clk 0:01:32]}  Rf8 {[%clk 0:00:45]} 29. Rxf8 {[%clk 0:01:24]}  Qxf8 {[%clk 0:00:46]} 30. c5 {[%clk 0:01:00]}  Qf6 {[%clk 0:00:42]} 31. b4 {[%clk 0:00:39]}  axb4 {[%clk 0:00:43]} 32. axb4 {[%clk 0:00:40]}  h5 {[%clk 0:00:36]} 33. b5 {[%clk 0:00:33]}  h4 {[%clk 0:00:34]} 34. c6 {[%clk 0:00:29]}  bxc6 {[%clk 0:00:35]} 35. bxc6 {[%clk 0:00:27]}  Bc8 {[%clk 0:00:35]} 36. h3 {[%clk 0:00:23]}  Kh6 {[%clk 0:00:33]} 37. Ne6 {[%clk 0:00:16]}  Bxe6 {[%clk 0:00:20]} 38. dxe6 {[%clk 0:00:17]}  Qe7 {[%clk 0:00:21]} 39. Qe5 {[%clk 0:00:17]}  Kg6 {[%clk 0:00:20]} 40. Kh2 {[%clk 0:00:15]}  Kh6 {[%clk 0:00:14]} 41. Kh1 {[%clk 0:00:14]}  Kg6 {[%clk 0:00:14]} 42. Kg1 {[%clk 0:00:14]}  Kh6 {[%clk 0:00:15]} 43. Qe4 {[%clk 0:00:11]}  Kg7 {[%clk 0:00:13]} 44. Qf5 {[%clk 0:00:09]}  Qf6 {[%clk 0:00:10]} 45. Qd5 {[%clk 0:00:04]}  Qf4 {[%clk 0:00:06]} 46. Qd7+ {[%clk 0:00:03]}  Kf6 {[%clk 0:00:06]} 47. Qf7+ {[%clk 0:00:03]}  Ke5 {[%clk 0:00:06]} 48. Qxf4+ {[%clk 0:00:04]}  gxf4 {[%clk 0:00:05]} 49. e7 {[%clk 0:00:05]} 1-0


[Site "https://www.chess.com"]